bitfinex-derivatives/quotes_SOLF0:USTF0_20220104
["timestamp","ask_amount","ask_price","bid_price","bid_amount"]
[1641333387855,42.60941261,168.79,168.73,20.0]
[1641333388258,2.41937591,168.78,168.73,20.0]
[1641333388659,2.41937591,168.78,168.73,24.0]
[1641333388857,2.41937591,168.78,168.73,20.0]
[1641333389259,27.66479,168.79,168.73,20.0]
[1641333393168,32.1153,168.8,168.74,4.0]
[1641333393368,32.1153,168.8,168.73,20.0]
[1641333395470,32.1153,168.8,168.74,4.0]
[1641333395672,32.1153,168.8,168.73,25.361]
[1641333395870,12.5252467,168.77,168.74,1.71563198]
[1641333396773,14.98747982,168.79,168.74,1.71563198]
[1641333397573,14.98747982,168.79,168.76,20.0]
[1641333397772,14.98747982,168.79,168.77,4.0]
[1641333397972,14.98747982,168.79,168.77,6.79]
[1641333398174,14.98747982,168.79,168.77,10.79]
[1641333398373,2.46223312,168.79,168.77,12.50563198]
[1641333398575,2.46223312,168.79,168.78,4.0]
[1641333399475,2.46223312,168.81,168.78,5.71563198]
[1641333399878,2.46223312,168.81,168.79,20.0]
[1641333400278,12.5252467,168.82,168.79,20.0]
[1641333401179,12.5252467,168.83,168.79,24.0]
[1641333401679,12.5252467,168.83,168.8,4.0]
[1641333401880,12.5252467,168.83,168.79,20.0]
[1641333402080,12.5252467,168.83,168.82,4.0]
[1641333402279,12.5252467,168.83,168.82,9.151]
[1641333402880,12.5252467,168.83,168.82,29.151]
[1641333403285,14.98747982,168.85,168.82,29.151]
[1641333403685,14.98747982,168.85,168.82,25.151]
[1641333403983,14.98747982,168.85,168.83,4.0]
[1641333405089,14.98747982,168.85,168.82,29.151]
[1641333405286,12.5252467,168.85,168.82,29.151]
[1641333405785,76.59743976,168.89,168.82,29.151]
[1641333405786,12.5252467,168.84,168.82,29.151]
[1641333407691,4.15278018,168.84,168.82,29.151]
[1641333408592,4.15278018,168.84,168.82,25.151]
[1641333409194,4.15278018,168.83,168.82,25.151]
[1641333409694,4.15278018,168.83,168.82,5.151]
[1641333409895,4.15278018,168.83,168.79,20.0]
[1641333411895,4.15278018,168.82,168.79,20.0]
[1641333412797,4.15278018,168.83,168.79,20.0]
[1641333413497,4.15278018,168.83,168.8,4.0]
[1641333415303,4.15278018,168.82,168.8,4.0]
[1641333416705,4.15278018,168.83,168.8,4.0]
[1641333417406,4.15278018,168.82,168.8,4.0]
[1641333417807,4.15278018,168.82,168.81,4.0]
[1641333418009,4.15278018,168.82,168.81,8.87]
[1641333418207,4.15278018,168.84,168.81,8.87]
[1641333418407,4.15278018,168.84,168.83,20.0]
[1641333418607,12.5252467,168.87,168.83,20.0]
[1641333418808,12.5252467,168.85,168.83,20.0]
[1641333419209,12.5252467,168.85,168.84,4.0]
[1641333419507,11.80432552,168.87,168.84,4.0]
[1641333419811,11.80432552,168.87,168.86,24.0]
[1641333420010,2.552e-05,168.87,168.86,29.807]
[1641333420207,2.552e-05,168.87,168.86,33.807]
[1641333420409,2.552e-05,168.87,168.86,29.807]
[1641333420811,4.17468451,168.89,168.86,57.47179]
[1641333421011,4.17468451,168.89,168.86,53.47179]
[1641333421211,4.17468451,168.89,168.88,4.0]
[1641333422113,33.43273488,168.95,168.88,8.17495584]
[1641333422315,33.43273488,168.95,168.9,20.0]
[1641333423014,33.43273488,168.94,168.9,20.0]
[1641333423214,33.43273488,168.94,168.9,24.0]
[1641333424115,33.43273488,168.94,168.93,24.0]
[1641333424315,33.43273488,168.94,168.93,28.778]
[1641333424815,33.43273488,168.94,168.93,56.44279]
[1641333425717,33.43273488,168.97,168.93,56.44279]
[1641333426515,33.43273488,168.97,168.93,52.44279]
[1641333426716,33.43273488,168.97,168.95,4.0]
[1641333427315,33.43273488,168.97,168.93,52.44279]
[1641333427916,33.43273488,168.97,168.94,4.0]
[1641333428317,29.6639,169.01,168.94,4.0]
[1641333428318,33.43273488,168.99,168.94,4.0]
[1641333428517,33.43273488,168.99,168.93,47.66479]
[1641333428716,33.43273488,168.99,168.94,4.0]
[1641333428917,33.43273488,168.99,168.93,20.0]
[1641333429618,39.91773488,168.99,168.93,20.0]
[1641333430018,33.43273488,168.98,168.93,20.0]
[1641333431621,33.43273488,168.98,168.93,24.0]
[1641333432021,33.43273488,168.98,168.94,4.0]
[1641333432222,33.43273488,168.98,168.97,4.0]
[1641333432924,33.43273488,169.0,168.97,4.0]
[1641333433123,33.43273488,169.0,168.94,31.66479]
[1641333433324,33.43273488,169.0,168.94,27.66479]
[1641333433523,4.12674065,169.01,168.94,27.66479]
[1641333433823,4.12674065,169.01,168.94,32.01879]
[1641333434225,4.12674065,169.01,168.95,4.0]
[1641333434426,4.12674065,169.01,168.94,32.01879]
[1641333434625,4.12674065,169.01,169.0,24.0]
[1641333434825,4.12674065,169.01,169.0,30.054]
[1641333435225,4.12674065,169.02,169.0,30.054]
[1641333435425,4.12674065,169.02,169.0,26.054]
[1641333435625,4.12674065,169.02,169.0,6.054]
[1641333436527,4.12674065,169.03,169.0,6.054]
[1641333436725,4.12674065,169.03,168.96,24.0]
[1641333437125,4.12674065,169.03,168.96,20.0]
[1641333437424,33.43273488,169.03,168.96,28.17495584]
[1641333437626,33.43273488,169.03,168.96,24.17495584]
[1641333437826,33.43273488,169.03,168.97,4.0]
[1641333438726,33.43273488,169.03,168.96,24.17495584]
[1641333438927,33.43273488,169.03,168.96,28.17495584]
[1641333439128,33.43273488,169.03,168.96,24.17495584]
[1641333439529,33.43273488,169.03,168.97,4.0]
[1641333439729,33.43273488,169.03,168.96,24.17495584]
[1641333440229,33.43273488,169.03,168.97,4.0]
[1641333440430,42.18270535,169.03,168.97,4.0]
[1641333441033,42.18270535,169.03,168.96,20.0]
[1641333441334,42.18270535,169.03,168.97,4.0]
[1641333441932,42.18270535,169.03,168.96,20.0]
[1641333444333,42.18270535,169.03,169.02,20.0]
[1641333444536,42.18270535,169.03,169.02,29.354]
[1641333444933,42.18270535,169.03,169.02,57.01879]
[1641333445432,42.18270535,169.03,169.02,53.01879]
[1641333445634,33.43273488,169.08,169.02,5.354]
[1641333446535,33.43273488,169.07,169.02,5.354]
[1641333447335,33.43273488,169.07,169.01,4.0]
[1641333448236,33.43273488,169.07,168.99,24.17495584]
[1641333448837,33.43273488,169.06,169.0,4.0]
[1641333449338,33.43273488,169.06,168.99,24.113]
[1641333449740,33.43273488,169.06,169.01,4.0]
[1641333450140,33.43273488,169.06,169.02,20.0]
[1641333450340,33.43273488,169.06,169.04,4.0]
[1641333451141,33.43273488,169.08,169.04,4.0]
[1641333451346,33.43273488,169.08,169.04,8.406]
[1641333454445,33.43273488,169.08,169.04,4.406]
[1641333455647,42.18270535,169.09,169.04,4.406]
[1641333456147,42.18270535,169.09,169.04,8.406]
[1641333457248,37.56763498,169.09,169.04,4.406]
[1641333457448,4.1349001,169.09,169.02,20.0]
[1641333457648,4.1349001,169.09,169.04,4.0]
[1641333458950,4.1349001,169.09,169.02,20.0]
[1641333459149,4.1349001,169.09,169.06,24.0]
[1641333459552,31.7996901,169.1,169.06,20.0]
[1641333462060,31.7996901,169.1,169.02,24.0]
[1641333462653,31.7996901,169.1,169.02,20.0]
[1641333462855,4.1349001,169.08,169.04,4.0]
[1641333463054,4.1349001,169.08,169.03,4.0]
[1641333463455,44.39388855,169.09,169.02,24.17495584]
[1641333463655,44.39388855,169.09,169.05,4.0]
[1641333463856,44.39388855,169.09,169.05,9.877]
[1641333464257,10.96115367,169.09,169.05,9.877]
[1641333465560,12.51467638,169.07,169.05,9.877]
[1641333465763,12.51467638,169.07,169.06,24.0]
[1641333466362,2.21656851,169.09,169.06,30.11071261]
[1641333466762,2.21656851,169.09,169.06,26.11071261]
[1641333467265,2.21656851,169.09,169.08,4.0]
[1641333467464,12.51295384,169.1,169.08,4.0]
[1641333467664,12.51295384,169.1,169.09,20.0]
[1641333467864,33.43273488,169.13,169.09,25.941]
[1641333468464,33.43273488,169.12,169.09,25.941]
[1641333469367,33.43273488,169.13,169.09,25.941]
[1641333469868,2.23481797,169.12,169.09,25.941]
[1641333470970,35.66755285,169.12,169.09,25.941]
[1641333471671,2.23481797,169.11,169.09,25.941]
[1641333471972,2.23481797,169.11,169.09,29.941]
[1641333472173,2.23481797,169.11,169.09,25.941]
[1641333472973,2.23481797,169.11,169.09,5.941]
[1641333473272,2.23481797,169.11,169.06,47.66479]
[1641333473473,8.72281797,169.11,169.06,51.66479]
[1641333473673,33.43273488,169.1,169.06,51.66479]
[1641333474476,33.43273488,169.1,169.06,47.66479]
[1641333474675,35.66755285,169.1,169.06,47.66479]
[1641333475280,33.43273488,169.1,169.06,47.66479]
[1641333475476,33.43273488,169.1,169.06,51.66479]
[1641333475678,33.43273488,169.1,169.06,47.66479]
[1641333477579,10.97476126,169.11,169.06,47.66479]
[1641333477779,10.97476126,169.11,169.06,51.66479]
[1641333478780,10.97476126,169.11,169.06,24.0]
[1641333479780,10.97476126,169.11,169.06,29.211]
[1641333480283,10.97476126,169.11,169.06,5.211]
[1641333480882,10.97476126,169.11,169.04,4.0]
[1641333481082,41.69226126,169.11,169.04,4.0]
[1641333481683,33.43273488,169.1,169.04,4.0]
[1641333482182,2.23481797,169.09,169.04,4.0]
[1641333482588,29.89960797,169.09,169.03,20.0]
[1641333482984,12.49144363,169.06,169.04,4.0]
[1641333483184,12.49144363,169.06,169.04,9.944]
[1641333483485,12.49144363,169.07,169.04,9.944]
[1641333483887,12.49144363,169.07,169.05,4.0]
[1641333484087,12.49144363,169.07,169.04,5.944]
[1641333484289,12.49144363,169.08,169.04,5.944]
[1641333484690,12.49144363,169.08,169.05,4.0]
[1641333485189,12.49144363,169.08,169.04,9.944]
[1641333486189,12.49144363,169.08,169.04,5.944]
[1641333486391,12.49144363,169.07,169.04,5.944]
[1641333486589,12.49144363,169.07,169.06,4.0]
[1641333486788,12.49144363,169.07,169.04,5.944]
[1641333487488,12.49144363,169.07,169.05,4.0]
[1641333487689,12.49144363,169.07,169.04,5.944]
[1641333488290,12.49144363,169.07,169.03,24.17495584]
[1641333489989,10.97476126,169.1,169.03,24.17495584]
[1641333490190,10.97476126,169.1,169.03,30.55295584]
[1641333490491,10.97476126,169.1,169.07,4.0]
[1641333490694,12.51263182,169.08,169.07,5.044]
[1641333491392,12.51263182,169.09,169.07,5.044]
[1641333491790,12.51263182,169.09,169.08,4.0]
[1641333493195,2.96853182,169.09,169.08,4.0]
[1641333493393,2.23481797,169.11,169.08,4.0]
[1641333493593,2.23481797,169.12,169.1,20.0]
[1641333493793,2.23481797,169.12,169.11,4.0]
[1641333493995,2.23481797,169.12,169.11,8.531]
[1641333494798,2.13761453,169.15,169.11,8.531]
[1641333494997,2.13761453,169.15,169.14,20.0]
[1641333495396,2.13761453,169.15,169.14,24.0]
[1641333496397,73.27237817,169.21,169.14,24.0]
[1641333496600,8.73994329,169.2,169.17,20.0]
[1641333496798,8.73994329,169.2,169.17,30.069]
[1641333497599,8.73994329,169.2,169.18,4.0]
[1641333497799,31.0997,169.21,169.18,4.0]
[1641333498099,27.66479,169.23,169.2,4.0]
[1641333498701,8.46125318,169.22,169.2,4.0]
[1641333499801,8.46125318,169.22,169.19,4.0]
[1641333499998,8.46125318,169.22,169.18,4.0]
[1641333500200,8.46125318,169.22,169.17,20.0]
[1641333502102,27.66479,169.23,169.17,20.0]
[1641333502902,8.40838019,169.22,169.17,20.0]
[1641333503404,8.40838019,169.22,169.16,4.0]
[1641333505006,8.40838019,169.22,169.14,20.0]
[1641333505206,8.40838019,169.22,169.11,20.0]
[1641333505407,8.40838019,169.22,169.12,4.0]
[1641333506106,8.40838019,169.22,169.11,20.0]
[1641333506307,4.14924598,169.13,169.11,20.0]
[1641333506707,4.14924598,169.13,169.12,4.0]
[1641333506908,33.43273488,169.21,169.12,4.0]
[1641333507109,4.14918315,169.14,169.11,20.0]
[1641333507509,4.14918315,169.14,169.13,4.0]
[1641333508110,33.43273488,169.21,169.13,4.0]
[1641333508309,20.98455744,169.22,169.13,4.0]
[1641333508310,33.43273488,169.18,169.13,4.0]
[1641333508512,33.43273488,169.18,169.12,4.0]
[1641333509011,33.43273488,169.17,169.12,4.0]
[1641333509811,73.09531507,169.18,169.12,4.0]
[1641333510411,41.84111507,169.17,169.12,4.0]
[1641333512213,41.84111507,169.17,169.11,20.0]
[1641333512414,41.84111507,169.17,169.11,24.0]
[1641333513115,27.66479,169.16,169.11,24.0]
[1641333513316,27.66479,169.16,169.11,20.0]
[1641333513614,8.40838019,169.15,169.11,20.0]
[1641333515419,8.40838019,169.15,169.12,4.0]
[1641333515820,8.40838019,169.15,169.11,26.444]
[1641333516421,8.40838019,169.15,169.12,4.0]
[1641333517620,8.40838019,169.15,169.11,26.444]
[1641333517821,8.40838019,169.15,169.14,4.0]
[1641333518621,8.40838019,169.15,169.11,26.444]
[1641333519023,8.40838019,169.15,169.11,20.0]
[1641333519521,8.40838019,169.15,169.12,4.0]
[1641333519720,8.40838019,169.15,169.11,20.0]
[1641333520521,8.40838019,169.15,169.11,24.0]
[1641333520722,8.40838019,169.15,169.08,53.94555584]
[1641333520921,12.60538019,169.15,169.08,53.94555584]
[1641333521222,12.60538019,169.15,169.11,4.0]
[1641333521422,12.60538019,169.15,169.08,53.94555584]
[1641333521724,12.60538019,169.15,169.11,4.0]
[1641333522524,12.60538019,169.15,169.1,4.0]
[1641333523527,12.49528591,169.14,169.1,4.0]
[1641333524528,12.49528591,169.13,169.1,4.0]
[1641333524927,8.40838019,169.15,169.1,4.0]
[1641333525328,8.40838019,169.15,169.09,4.17495584]
[1641333525529,8.40838019,169.15,169.09,8.17495584]
[1641333525728,12.51036956,169.13,169.1,4.0]
[1641333531935,8.40838019,169.15,169.1,4.0]
[1641333532933,12.51039223,169.13,169.1,4.0]
[1641333533636,8.40838019,169.15,169.1,4.0]
[1641333534337,12.51038258,169.13,169.1,4.0]
[1641333534836,2.12810995,169.14,169.1,4.0]
[1641333535638,12.51042649,169.13,169.1,4.0]
[1641333536239,2.12810995,169.14,169.1,4.0]
[1641333537042,12.51124729,169.12,169.1,4.0]
[1641333537946,12.51124729,169.12,169.08,24.17495584]
[1641333538546,12.51124729,169.12,169.09,4.0]
[1641333539146,12.51124729,169.12,169.08,24.17495584]
[1641333539346,12.51124729,169.11,169.08,24.17495584]
[1641333539548,12.51124729,169.11,169.1,4.0]
[1641333540449,10.53649014,169.13,169.1,4.0]
[1641333541261,12.51191407,169.11,169.08,20.0]
[1641333541748,10.53649014,169.13,169.08,20.0]
[1641333541948,10.53649014,169.13,169.12,4.0]
[1641333542949,33.43273488,169.15,169.12,4.0]
[1641333543349,27.66479,169.14,169.12,4.0]
[1641333543750,63.22563483,169.14,169.12,4.0]
[1641333544451,10.53649014,169.13,169.12,4.0]
[1641333546354,14.60501826,169.13,169.12,4.0]
[1641333548059,14.60501826,169.13,169.11,20.0]
[1641333548256,2.12810995,169.13,169.11,20.0]
[1641333548661,2.12810995,169.13,169.06,56.12185584]
[1641333548860,42.06126143,169.13,169.06,28.17495584]
[1641333549460,27.66479,169.11,169.06,4.17495584]
[1641333549660,33.20479,169.11,169.06,4.17495584]
[1641333550062,12.51263523,169.1,169.06,4.17495584]
[1641333550562,2.12810995,169.1,169.06,6.21686167]
[1641333551462,14.64041833,169.1,169.06,6.21686167]
[1641333552163,12.51230838,169.09,169.06,6.21686167]
[1641333552764,10.58557817,169.1,169.06,6.21686167]
[1641333553664,12.5134201,169.07,169.04,6.21686167]
[1641333554464,12.5134201,169.07,169.04,10.21686167]
[1641333554664,5.175,169.07,169.04,10.21686167]
[1641333554866,5.175,169.07,169.04,6.21686167]
[1641333555064,5.175,169.07,169.06,4.0]
[1641333555467,5.175,169.07,169.05,4.17495584]
[1641333555867,5.175,169.07,169.06,4.0]
[1641333556065,12.51299447,169.09,169.06,4.0]
[1641333556565,12.51299447,169.09,169.05,4.17495584]
[1641333556865,12.51299447,169.08,169.05,4.17495584]
[1641333557065,12.51299447,169.08,169.06,4.0]
[1641333557365,12.51299447,169.08,169.05,4.17495584]
[1641333557565,12.51299447,169.08,169.03,20.0]
[1641333557566,27.66479,169.08,169.04,4.17495584]
[1641333557766,27.66479,169.08,169.04,8.17495584]
[1641333558165,40.17822571,169.08,169.04,10.21678091]
[1641333558667,40.17822571,169.08,169.05,4.0]
[1641333558867,27.66479,169.08,169.05,4.0]
[1641333559068,12.51382366,169.07,169.05,4.0]
[1641333559268,12.51382366,169.07,169.06,4.0]
[1641333559769,27.66479,169.08,169.04,4.17495584]
[1641333559969,40.17791392,169.08,169.05,4.17495584]
[1641333560169,40.17791392,169.08,169.05,8.17495584]
[1641333560373,40.17791392,169.08,169.05,4.17495584]
[1641333560570,27.66479,169.08,169.05,4.17495584]
[1641333561269,27.66479,169.08,169.04,6.04184595]
[1641333561270,40.17856688,169.08,169.04,8.17495584]
[1641333561569,46.51156688,169.08,169.04,8.17495584]
[1641333565075,46.51156688,169.08,169.04,4.17495584]
[1641333565275,33.99779,169.08,169.07,4.0]
[1641333565477,27.66479,169.08,169.05,4.0]
[1641333566080,40.1782713,169.08,169.05,8.17495584]
[1641333566581,40.1782713,169.08,169.05,4.17495584]
[1641333566780,40.1782713,169.08,169.05,8.17495584]
[1641333566979,27.66479,169.08,169.05,8.17495584]
[1641333567180,27.66479,169.08,169.05,4.17495584]
[1641333567584,27.66479,169.08,169.07,4.0]
[1641333568583,27.66479,169.08,169.07,9.889]
[1641333570383,27.66479,169.08,169.07,5.889]
[1641333570683,27.66479,169.08,169.05,4.17495584]
[1641333571284,2.12549013,169.07,169.03,24.17495584]
[1641333571582,2.12549013,169.07,169.06,4.0]
[1641333571983,2.12549013,169.07,169.06,24.0]
[1641333572186,27.66479,169.08,169.06,24.0]
[1641333572584,27.66479,169.08,169.07,4.0]
[1641333572984,27.66479,169.08,169.06,20.0]
[1641333573386,29.79005593,169.08,169.06,24.0]
[1641333573585,29.79005593,169.08,169.06,20.0]
[1641333573787,29.79005593,169.08,169.07,4.0]
[1641333573986,27.66479,169.08,169.07,4.0]
[1641333574186,27.66479,169.11,169.07,4.0]
[1641333574588,8.45857859,169.1,169.07,4.0]
[1641333575286,8.45857859,169.1,169.06,20.0]
[1641333575886,8.45857859,169.1,169.06,24.0]
[1641333576989,27.66479,169.11,169.06,24.0]
[1641333577189,27.66479,169.11,169.06,28.17495584]
[1641333577589,8.45822147,169.1,169.06,24.0]
[1641333577990,8.45822147,169.1,169.06,20.0]
[1641333578192,8.45822147,169.1,169.09,24.0]
[1641333578391,27.66479,169.11,169.09,29.06]
[1641333578591,27.66479,169.11,169.1,4.0]
[1641333578791,61.09752488,169.14,169.1,4.0]
[1641333578991,33.43273488,169.14,169.1,4.0]
[1641333579192,33.43273488,169.14,169.13,4.0]
[1641333579391,33.43273488,169.14,169.13,8.115]
[1641333579795,33.43273488,169.16,169.13,8.115]
[1641333580595,41.88734863,169.17,169.13,8.115]
[1641333580795,41.88734863,169.17,169.16,4.0]
[1641333580997,41.88734863,169.17,169.13,4.115]
[1641333581197,41.88734863,169.17,169.14,4.0]
[1641333581698,41.88734863,169.17,169.12,20.0]
[1641333582599,8.45461375,169.17,169.12,20.0]
[1641333583097,8.45461375,169.17,169.14,4.0]
[1641333583897,41.88734863,169.17,169.14,4.0]
[1641333586297,41.88734863,169.17,169.12,20.0]
[1641333586298,41.88734863,169.17,169.1,4.17495584]
[1641333586497,46.32934863,169.17,169.1,4.17495584]
[1641333586697,27.66479,169.12,169.1,4.17495584]
[1641333586897,32.81179,169.12,169.09,4.17495584]
[1641333588101,8.45461375,169.11,169.06,4.17495584]
[1641333588599,27.66479,169.08,169.06,4.17495584]
[1641333589199,27.66479,169.08,169.03,4.17495584]
[1641333589399,32.76279,169.08,169.03,4.17495584]
[1641333589600,32.76279,169.08,169.0,12.49528591]
[1641333590407,44.01788513,169.07,168.95,32.49528591]
[1641333590602,44.01788513,169.07,168.95,36.49528591]
[1641333590603,27.66479,169.0,168.95,36.49528591]
[1641333590801,33.16779,169.0,168.95,36.49528591]
[1641333591407,33.16779,169.0,168.96,4.0]
[1641333591605,2.1305365,168.99,168.96,6.00397899]
[1641333592003,2.1305365,168.99,168.96,2.00397899]
[1641333592605,33.16779,169.0,168.96,2.00397899]
[1641333593104,33.16779,169.0,168.96,6.00397899]
[1641333593304,33.16779,169.0,168.96,2.00397899]
[1641333593505,2.16879937,168.99,168.98,4.0]
[1641333593704,2.16879937,168.99,168.96,2.00397899]
[1641333594306,33.16779,169.0,168.96,2.00397899]
[1641333595206,33.16779,169.0,168.96,6.00397899]
[1641333595409,2.16912166,168.99,168.96,6.00397899]
[1641333596110,2.16912166,168.99,168.96,2.00397899]
[1641333596411,33.16779,169.0,168.96,2.00397899]
[1641333596611,33.16779,169.0,168.97,2.00397899]
[1641333596812,33.16779,169.0,168.99,4.0]
[1641333597011,27.66479,169.0,168.99,4.0]
[1641333597212,29.83367248,169.0,168.99,9.298]
[1641333597913,2.16888248,169.0,168.99,9.298]
[1641333598113,33.43273488,169.06,168.99,9.298]
[1641333598612,33.43273488,169.06,168.99,5.298]
[1641333598814,27.66479,169.05,168.98,20.0]
[1641333599014,12.51672619,169.03,169.0,4.0]
[1641333599213,12.51672619,169.03,168.98,20.0]
[1641333599616,10.73146487,169.04,168.98,20.0]
[1641333600314,14.68457252,169.04,168.99,2.0040902]
[1641333600717,14.68457252,169.04,168.99,6.0040902]
[1641333600917,27.66479,169.02,168.99,6.0040902]
[1641333601118,32.84779,169.02,168.99,2.0040902]
[1641333601917,12.51639884,169.0,168.92,64.11858591]
[1641333602317,12.51639884,169.0,168.96,4.0]
[1641333602517,12.51639884,169.0,168.95,4.0]
[1641333602720,12.51639884,168.99,168.95,4.0]
[1641333603719,12.51639884,168.99,168.96,2.00384238]
[1641333604421,10.73207641,169.01,168.95,4.0]
[1641333605023,27.66479,168.99,168.95,4.0]
[1641333605221,40.18495267,168.99,168.95,4.0]
[1641333606225,2.16817368,168.98,168.95,4.0]
[1641333606425,2.16817368,168.98,168.92,51.6233]
[1641333606625,2.16817368,168.98,168.97,4.0]
[1641333607027,14.68758867,169.01,168.95,4.0]
[1641333607325,14.68758867,169.01,168.97,4.0]
[1641333608529,32.84779,169.02,168.97,4.0]
[1641333608929,32.84779,169.02,168.94,20.62104832]
[1641333609129,14.68704323,169.01,168.95,4.0]
[1641333609329,14.68704323,169.01,168.94,24.62104832]
[1641333609930,14.68704323,169.01,168.94,20.62104832]
[1641333610130,32.84779,169.02,168.94,12.49528591]
[1641333610332,12.51974815,168.99,168.95,2.00386692]
[1641333610934,27.66479,168.96,168.93,4.0]
[1641333611137,33.42279,168.96,168.93,4.0]
[1641333612235,2.17012706,168.95,168.93,4.0]
[1641333612834,33.42279,168.96,168.93,4.0]
[1641333613739,2.17001942,168.95,168.94,2.00376076]
[1641333614140,2.17001942,168.95,168.9,12.49528591]
[1641333614339,12.52134052,168.95,168.9,4.0]
[1641333614939,12.52134052,168.95,168.88,4.0]
[1641333615141,27.66479,168.9,168.88,4.0]
[1641333615340,34.43279,168.9,168.88,4.0]
[1641333615843,34.43279,168.9,168.86,20.57323074]
[1641333616041,34.43279,168.9,168.86,12.49528591]
[1641333616341,34.43279,168.9,168.87,4.0]
[1641333616740,27.75287119,168.9,168.87,4.0]
[1641333616940,27.75287119,168.9,168.85,32.49528591]
[1641333617141,27.75287119,168.9,168.86,4.0]
[1641333617341,27.75287119,168.9,168.85,12.49528591]
[1641333619144,27.66479,168.86,168.85,8.591e-05]
[1641333619343,32.80279,168.86,168.81,8.591e-05]
[1641333620043,32.80279,168.86,168.79,11.91903114]
[1641333620245,32.80279,168.86,168.77,38.88723114]
[1641333620645,32.80279,168.86,168.8,4.0]
[1641333620844,32.80279,168.86,168.78,4.0]
[1641333621044,32.80279,168.86,168.78,7.91903114]
[1641333621545,32.80279,168.86,168.79,4.0]
[1641333622344,32.80279,168.86,168.78,7.91903114]
[1641333623345,32.80279,168.86,168.79,4.0]
[1641333624148,32.80279,168.86,168.77,7.91903114]
[1641333624347,32.80279,168.86,168.79,4.0]
[1641333625349,27.66479,168.82,168.77,7.91903114]
[1641333626249,27.66479,168.82,168.76,27.91903114]
[1641333630256,27.66479,168.82,168.81,4.0]
[1641333631556,32.80279,168.86,168.81,4.0]
[1641333633457,32.80279,168.86,168.82,4.0]
[1641333634158,5.138,168.86,168.82,4.0]
[1641333634361,29.6435,168.89,168.82,4.0]
[1641333635059,9.08462681,168.88,168.86,4.0]
[1641333635259,9.08462681,168.88,168.86,4.613]
[1641333635959,9.08462681,168.88,168.86,8.613]
[1641333636160,9.08462681,168.88,168.86,4.613]
[1641333636360,33.43273488,168.9,168.84,4.0]
[1641333637161,9.08462681,168.9,168.84,4.0]
[1641333640464,33.43273488,168.91,168.84,4.0]
[1641333641164,27.66479,168.89,168.84,4.0]
[1641333641664,27.66479,168.89,168.83,20.0]
[1641333641865,27.66479,168.89,168.84,4.0]
[1641333642167,9.08462681,168.88,168.84,4.0]
[1641333642765,9.08462681,168.88,168.83,20.0]
[1641333643064,9.08462681,168.88,168.84,4.0]
[1641333643464,27.66479,168.89,168.83,20.0]
[1641333643664,27.66479,168.89,168.85,4.0]
[1641333643965,33.43273488,168.91,168.85,4.0]
[1641333644164,33.43273488,168.91,168.83,20.0]
[1641333644363,33.43273488,168.91,168.85,4.0]
[1641333644867,42.51588528,168.92,168.83,20.0]
[1641333645064,42.51588528,168.92,168.85,4.0]
[1641333645364,42.51588528,168.92,168.83,20.0]
[1641333645565,42.51588528,168.92,168.86,4.0]
[1641333645767,27.66479,168.88,168.84,4.0]
[1641333646166,32.83979,168.88,168.83,4.0]
[1641333646772,32.83979,168.88,168.81,30.0445]
[1641333647069,32.83979,168.88,168.84,4.0]
[1641333649872,12.52707285,168.87,168.84,4.0]
[1641333651473,12.52707285,168.87,168.83,4.17567303]
[1641333651675,12.52707285,168.87,168.83,8.17567303]
[1641333651874,12.52707285,168.86,168.83,4.0]
[1641333654078,12.52707285,168.86,168.84,4.0]
[1641333656080,12.52707285,168.86,168.82,8.17567303]
[1641333656280,27.66479,168.83,168.8,4.0]
[1641333657180,14.88993175,168.82,168.8,4.0]
[1641333657983,12.52707285,168.81,168.8,4.0]